[Event "FIDE Women World Blitz 2021"]
[Site "Warsaw"]
[Date "2021.12.29"]
[Round "3.21"]
[White "Bivol, Alina"]
[Black "Dzagnidze, Nana"]
[Result "0-1"]
[ECO "B51"]
[WhiteElo "2377"]
[BlackElo "2524"]
[Annotator "ChessBase"]
[PlyCount "72"]
[EventDate "2021.12.29"]
[EventType "swiss"]
[EventCountry "POL"]
[Tiebreak "Cut1 Buchholz"]
[SourceTitle "playchess.com"]
[Source "ChessBase"]
[SourceQuality "1"]
[TimeControl "180+2"]

1. e4 {[%emt 0:00:01]} c5 {[%emt 0:00:02]} 2. Nf3 {[%emt 0:00:01]} d6 {[%emt 0:
00:02]} 3. Bb5+ {[%emt 0:00:01]} Nd7 {[%emt 0:00:02]} 4. a4 {[%emt 0:00:03]}
Ngf6 {[%emt 0:00:03]} 5. Nc3 {[%emt 0:00:06]} g6 {[%emt 0:00:04]} 6. O-O {
[%emt 0:00:02]} Bg7 {[%emt 0:00:01]} 7. Re1 {[%emt 0:00:10]} O-O {[%emt 0:00:
02]} 8. a5 {[%emt 0:00:01]} a6 {[%emt 0:00:12]} 9. Bf1 {[%emt 0:00:02]} e6 {
[%emt 0:00:34]} 10. d3 {[%emt 0:00:14]} Nb8 {[%emt 0:00:11]} 11. e5 {[%emt 0:
00:07]} dxe5 {[%emt 0:00:04]} 12. Nxe5 {[%emt 0:00:02]} Nfd7 {[%emt 0:00:04]}
13. Bf4 {[%emt 0:00:18]} Nxe5 {[%emt 0:00:13]} 14. Bxe5 {[%emt 0:00:01]} Nc6 {
[%emt 0:00:12]} 15. Bxg7 {[%emt 0:00:08]} Kxg7 {[%emt 0:00:01]} 16. Ne4 {
[%emt 0:00:07]} Nxa5 {[%emt 0:00:23]} 17. Nxc5 {[%emt 0:00:02]} Nc6 {[%emt 0:
00:06]} 18. Qd2 {[%emt 0:00:05]} b6 {[%emt 0:00:07]} 19. Qc3+ {[%emt 0:00:25]}
Qd4 {[%emt 0:00:10]} 20. Ne4 {[%emt 0:00:32]} Qxc3 {[%emt 0:00:37]} 21. Nxc3 {
[%emt 0:00:10]} Rd8 {[%emt 0:00:09]} 22. g3 {[%emt 0:00:10]} Nd4 {[%emt 0:00:
07]} 23. Bg2 {[%emt 0:00:01]} Ra7 {[%emt 0:00:03]} 24. Rac1 {[%emt 0:00:12]}
Rc7 {[%emt 0:00:01]} 25. h4 {[%emt 0:00:20]} Bb7 {[%emt 0:00:01]} 26. Bxb7 {
[%emt 0:00:17]} Rxb7 {[%emt 0:00:00]} 27. Kg2 Rc7 28. Re4 {[%emt 0:00:09]} f5 {
[%emt 0:00:04]} 29. Ree1 {[%emt 0:00:03]} Kf6 {[%emt 0:00:02]} 30. f3 {[%emt 0:
00:03]} b5 {[%emt 0:00:06]} 31. g4 {[%emt 0:00:01]} b4 {[%emt 0:00:04]} 32. Ne2
{[%emt 0:00:07]} Rxc2 {[%emt 0:00:05]} 33. Rxc2 {[%emt 0:00:02]} Nxc2 {[%emt 0:
00:01]} 34. Rc1 {[%emt 0:00:01]} b3 {[%emt 0:00:02]} 35. d4 {[%emt 0:00:01]} h6
{[%emt 0:00:05]} 36. Rf1 {[%emt 0:00:05]} Ne3+ {[%emt 0:00:02]} 0-1

[Event "FIDE Women World Blitz 2021"]
[Site "Warsaw"]
[Date "2021.12.29"]
[Round "3.22"]
[White "Abdumalik, Zhansaya"]
[Black "Kovanova, Baira"]
[Result "1-0"]
[ECO "C90"]
[WhiteElo "2507"]
[BlackElo "2331"]
[Annotator "ChessBase"]
[PlyCount "113"]
[EventDate "2021.12.29"]
[EventType "swiss"]
[EventCountry "POL"]
[Tiebreak "Cut1 Buchholz"]
[SourceTitle "playchess.com"]
[Source "ChessBase"]
[SourceQuality "1"]
[TimeControl "180+2"]

1. e4 {[%emt 0:00:01]} e5 {[%emt 0:00:01]} 2. Nf3 {[%emt 0:00:01]} Nc6 {
[%emt 0:00:01]} 3. Bb5 {[%emt 0:00:03]} a6 {[%emt 0:00:02]} 4. Ba4 {[%emt 0:00:
01]} Nf6 {[%emt 0:00:01]} 5. O-O {[%emt 0:00:01]} Be7 {[%emt 0:00:01]} 6. Re1 {
[%emt 0:00:01]} b5 {[%emt 0:00:04]} 7. Bb3 {[%emt 0:00:01]} Bb7 {[%emt 0:00:01]
} 8. d3 {[%emt 0:00:07]} d6 {[%emt 0:00:04]} 9. c3 {[%emt 0:00:01]} O-O {
[%emt 0:00:07]} 10. Nbd2 {[%emt 0:00:06]} Na5 {[%emt 0:00:24]} 11. Bc2 {
[%emt 0:00:01]} c5 {[%emt 0:00:01]} 12. Nf1 {[%emt 0:00:01]} Nc6 {[%emt 0:00:
05]} 13. Ng3 {[%emt 0:00:05]} Re8 {[%emt 0:00:02]} 14. a4 {[%emt 0:00:11]} h6 {
[%emt 0:00:04]} 15. h3 {[%emt 0:00:28]} Bf8 {[%emt 0:00:01]} 16. Bb3 {[%emt 0:
00:03]} d5 {[%emt 0:00:32]} 17. Ba2 {[%emt 0:00:37]} dxe4 {[%emt 0:00:09]} 18.
Nxe4 {[%emt 0:00:09]} Nxe4 {[%emt 0:00:16]} 19. dxe4 {[%emt 0:00:03]} c4 {
[%emt 0:00:07]} 20. Be3 {[%emt 0:00:07]} Qc7 {[%emt 0:00:06]} 21. b3 {[%emt 0:
00:18]} cxb3 {[%emt 0:00:28]} 22. Qxb3 {[%emt 0:00:01]} Na5 {[%emt 0:00:01]}
23. Qc2 {[%emt 0:00:12]} Nc4 {[%emt 0:00:03]} 24. Bc1 {[%emt 0:00:08]} Bc5 {
[%emt 0:00:05]} 25. Bxc4 {[%emt 0:00:15]} bxc4 {[%emt 0:00:02]} 26. Qe2 {
[%emt 0:00:04]} Rac8 {[%emt 0:00:10]} 27. Nh4 {[%emt 0:00:07]} Qb6 {[%emt 0:00:
25]} 28. Nf5 {[%emt 0:00:07]} Re6 {[%emt 0:00:01]} 29. Be3 {[%emt 0:00:09]}
Bxe3 {[%emt 0:00:05]} 30. Qxe3 {[%emt 0:00:14]} Qxe3 {[%emt 0:00:06]} 31. Rxe3
{[%emt 0:00:01]} Rd8 {[%emt 0:00:06]} 32. Rb1 {[%emt 0:00:02]} Bc6 {[%emt 0:00:
01]} 33. Rb4 {[%emt 0:00:03]} Rd1+ {[%emt 0:00:16]} 34. Kh2 {[%emt 0:00:00]}
Rd3 {[%emt 0:00:04]} 35. Rxc4 {[%emt 0:00:02]} Rxe3 {[%emt 0:00:01]} 36. Nxe3 {
[%emt 0:00:04]} g6 {[%emt 0:00:03]} 37. f3 {[%emt 0:00:04]} Rd6 {[%emt 0:00:01]
} 38. a5 {[%emt 0:00:02]} Bb5 {[%emt 0:00:02]} 39. Rc5 {[%emt 0:00:01]} f6 {
[%emt 0:00:01]} 40. Nd5 {[%emt 0:00:00]} Kf7 {[%emt 0:00:06]} 41. Rc7+ {
[%emt 0:00:02]} Rd7 {[%emt 0:00:03]} 42. Rc8 {[%emt 0:00:05]} h5 {[%emt 0:00:
01]} 43. h4 {[%emt 0:00:02]} Rb7 {[%emt 0:00:03]} 44. c4 {[%emt 0:00:01]} Bd7 {
[%emt 0:00:01]} 45. Rc5 {[%emt 0:00:02]} Be6 {[%emt 0:00:01]} 46. Nb6 {[%emt 0:
00:01]} Re7 {[%emt 0:00:03]} 47. Rc6 {[%emt 0:00:02]} f5 {[%emt 0:00:01]} 48.
c5 {[%emt 0:00:03]} fxe4 49. fxe4 {[%emt 0:00:01]} Bb3 {[%emt 0:00:03]} 50. Rc8
{[%emt 0:00:05]} Bc2 {[%emt 0:00:02]} 51. Nd5 {[%emt 0:00:02]} Re8 {[%emt 0:00:
02]} 52. Rc7+ {[%emt 0:00:01]} Ke6 {[%emt 0:00:03]} 53. Rc6+ {[%emt 0:00:01]}
Kd7 {[%emt 0:00:01]} 54. Rxa6 {[%emt 0:00:02]} Rb8 {[%emt 0:00:02]} 55. Rxg6 {
[%emt 0:00:03]} Rb2 {[%emt 0:00:02]} 56. c6+ {[%emt 0:00:02]} Kd8 {[%emt 0:00:
03]} 57. Rg8# {[%emt 0:00:01]} 1-0

[Event "FIDE Women World Blitz 2021"]
[Site "Warsaw"]
[Date "2021.12.29"]
[Round "3.23"]
[White "Rakhmangulova, Anastasiya"]
[Black "Zhukova, Natalia"]
[Result "0-1"]
[ECO "C55"]
[WhiteElo "2174"]
[BlackElo "2331"]
[Annotator "NA"]
[PlyCount "78"]
[EventDate "2021.12.29"]
[EventType "swiss"]
[EventCountry "POL"]
[Tiebreak "Cut1 Buchholz"]
[SourceTitle "playchess.com"]
[Source "ChessBase"]
[SourceQuality "1"]
[TimeControl "180+2"]

1. e4 {[%emt 0:00:01]} e5 {[%emt 0:00:01]} 2. Nc3 {[%emt 0:00:03]} Nf6 {
[%emt 0:00:11]} 3. Bc4 {[%emt 0:00:01]} Nc6 {[%emt 0:00:05]} 4. d3 {[%emt 0:00:
02]} Na5 {[%emt 0:00:06]} 5. Nf3 {[%emt 0:00:38]} Nxc4 {[%emt 0:00:04]} 6. dxc4
{[%emt 0:00:01]} d6 {[%emt 0:00:03]} 7. O-O {[%emt 0:00:18]} Be7 {[%emt 0:00:
16]} 8. h3 {[%emt 0:00:07]} O-O {[%emt 0:00:02]} 9. b3 {[%emt 0:00:04]} h6 {
[%emt 0:00:04]} 10. a4 {[%emt 0:00:04]} c6 {[%emt 0:00:32]} 11. Re1 {[%emt 0:
00:05]} Nh7 {[%emt 0:00:05]} 12. c5 {[%emt 0:00:13]} dxc5 {[%emt 0:00:18]} 13.
Bb2 {[%emt 0:00:04]} Qxd1 {[%emt 0:00:12]} 14. Raxd1 {[%emt 0:00:01]} f6 {
[%emt 0:00:01]} 15. Nh4 {[%emt 0:00:10]} Kf7 {[%emt 0:00:04]} 16. Ne2 {[%emt 0:
00:13]} Ng5 {[%emt 0:00:11]} 17. Ng3 {[%emt 0:00:31]} g6 {[%emt 0:00:02]} 18.
Rf1 {[%emt 0:00:01]} Ne6 {[%emt 0:00:02]} 19. Ne2 {[%emt 0:00:06]} Nd4 {
[%emt 0:00:37]} 20. Nxd4 {[%emt 0:00:43]} cxd4 {[%emt 0:00:01]} 21. f4 {
[%emt 0:00:01]} Kg7 {[%emt 0:00:29]} 22. f5 {[%emt 0:00:01]} g5 {[%emt 0:00:01]
} 23. Ng6 {[%emt 0:00:02]} Re8 24. Nxe7 {[%emt 0:00:03]} Rxe7 {[%emt 0:00:01]}
25. c3 {[%emt 0:00:04]} c5 {[%emt 0:00:05]} 26. cxd4 {[%emt 0:00:10]} exd4 {
[%emt 0:00:03]} 27. Rfe1 {[%emt 0:00:02]} b6 {[%emt 0:00:02]} 28. Kf2 {[%emt 0:
00:01]} Bb7 {[%emt 0:00:01]} 29. e5 {[%emt 0:00:06]} Rxe5 {[%emt 0:00:02]} 30.
Rxe5 {[%emt 0:00:01]} fxe5 {[%emt 0:00:01]} 31. g4 {[%emt 0:00:02]} e4 {
[%emt 0:00:02]} 32. b4 {[%emt 0:00:01]} e3+ {[%emt 0:00:04]} 33. Ke2 {[%emt 0:
00:01]} Ba6+ {[%emt 0:00:05]} 34. Ke1 {[%emt 0:00:02]} Kf7 {[%emt 0:00:03]} 35.
bxc5 {[%emt 0:00:04]} bxc5 {[%emt 0:00:01]} 36. Ba3 {[%emt 0:00:02]} Rc8 {
[%emt 0:00:02]} 37. Rc1 {[%emt 0:00:01]} c4 {[%emt 0:00:09]} 38. Rd1 {[%emt 0:
00:04]} d3 {[%emt 0:00:02]} 39. Rc1 {[%emt 0:00:03]} d2+ {[%emt 0:00:01]} 0-1

[Event "FIDE Women World Blitz 2021"]
[Site "Warsaw"]
[Date "2021.12.29"]
[Round "3.24"]
[White "Zawadzka, Jolanta"]
[Black "Movsesian, Julia"]
[Result "1-0"]
[ECO "B07"]
[WhiteElo "2429"]
[BlackElo "2322"]
[Annotator "NA"]
[PlyCount "121"]
[EventDate "2021.12.29"]
[EventType "swiss"]
[EventCountry "POL"]
[Tiebreak "Cut1 Buchholz"]
[SourceTitle "playchess.com"]
[Source "ChessBase"]
[SourceQuality "1"]
[TimeControl "180+2"]

1. e4 {[%emt 0:00:01]} d6 {[%emt 0:00:00]} 2. d4 {[%emt 0:00:01]} Nf6 {[%emt 0:
00:01]} 3. Nc3 {[%emt 0:00:01]} e5 {[%emt 0:00:00]} 4. dxe5 {[%emt 0:00:01]}
dxe5 {[%emt 0:00:01]} 5. Qxd8+ {[%emt 0:00:02]} Kxd8 {[%emt 0:00:01]} 6. Bc4 {
[%emt 0:00:01]} Ke8 {[%emt 0:00:04]} 7. Bg5 {[%emt 0:00:05]} Bd6 {[%emt 0:00:
33]} 8. O-O-O {[%emt 0:00:27]} a6 {[%emt 0:00:08]} 9. Bxf6 {[%emt 0:00:13]}
gxf6 {[%emt 0:00:01]} 10. Nd5 {[%emt 0:00:01]} Nd7 {[%emt 0:00:17]} 11. Ne2 {
[%emt 0:00:21]} b5 {[%emt 0:00:19]} 12. Bb3 {[%emt 0:00:06]} a5 {[%emt 0:00:42]
} 13. a3 {[%emt 0:00:05]} Nc5 {[%emt 0:00:33]} 14. Nxf6+ {[%emt 0:00:12]} Ke7 {
[%emt 0:00:00]} 15. Nd5+ {[%emt 0:00:13]} Kf8 {[%emt 0:00:01]} 16. Ng3 {
[%emt 0:00:08]} Nxb3+ {[%emt 0:00:06]} 17. cxb3 {[%emt 0:00:01]} Be6 {[%emt 0:
00:02]} 18. Rd3 {[%emt 0:00:12]} a4 {[%emt 0:00:05]} 19. bxa4 {[%emt 0:00:05]}
Rxa4 {[%emt 0:00:01]} 20. Rhd1 {[%emt 0:00:23]} Rg8 {[%emt 0:00:02]} 21. Kb1 {
[%emt 0:00:28]} Rxg3 {[%emt 0:00:06]} 22. Rxg3 {[%emt 0:00:07]} Rxe4 {[%emt 0:
00:01]} 23. Nf6 {[%emt 0:00:02]} Rc4 {[%emt 0:00:03]} 24. Nxh7+ {[%emt 0:00:09]
} Ke7 25. Ng5 {[%emt 0:00:01]} Bf5+ {[%emt 0:00:02]} 26. Ka1 {[%emt 0:00:00]}
b4 {[%emt 0:00:01]} 27. Re1 {[%emt 0:00:09]} bxa3 {[%emt 0:00:01]} 28. bxa3 {
[%emt 0:00:01]} f6 {[%emt 0:00:02]} 29. Nh3 {[%emt 0:00:11]} Bc5 {[%emt 0:00:
01]} 30. Rf3 {[%emt 0:00:02]} Bd4+ {[%emt 0:00:02]} 31. Ka2 {[%emt 0:00:01]}
Be6 {[%emt 0:00:01]} 32. Kb1 {[%emt 0:00:02]} Bd5 {[%emt 0:00:02]} 33. Rd3 {
[%emt 0:00:02]} Kf7 {[%emt 0:00:03]} 34. f3 {[%emt 0:00:02]} Rc6 {[%emt 0:00:
01]} 35. a4 {[%emt 0:00:06]} Rb6+ {[%emt 0:00:01]} 36. Kc1 c5 {[%emt 0:00:01]}
37. Rd2 {[%emt 0:00:07]} c4 {[%emt 0:00:03]} 38. Nf2 {[%emt 0:00:01]} c3 {
[%emt 0:00:00]} 39. Rc2 {[%emt 0:00:01]} Bb3 {[%emt 0:00:02]} 40. Nd3 {[%emt 0:
00:04]} Bxa4 {[%emt 0:00:02]} 41. Ra2 {[%emt 0:00:01]} Bb3 {[%emt 0:00:02]} 42.
Ra3 {[%emt 0:00:01]} Bc4 {[%emt 0:00:02]} 43. Kc2 {[%emt 0:00:01]} Rb7 {
[%emt 0:00:02]} 44. Rea1 {[%emt 0:00:03]} Kg6 {[%emt 0:00:02]} 45. Ra4 {
[%emt 0:00:01]} Bb3+ {[%emt 0:00:02]} 46. Kc1 {[%emt 0:00:01]} Bxa4 {[%emt 0:
00:00]} 47. Rxa4 Kf5 {[%emt 0:00:03]} 48. Kc2 {[%emt 0:00:01]} Rh7 {[%emt 0:00:
02]} 49. h3 {[%emt 0:00:01]} e4 {[%emt 0:00:03]} 50. Rxd4 {[%emt 0:00:02]}
exd3+ {[%emt 0:00:01]} 51. Rxd3 {[%emt 0:00:01]} Re7 {[%emt 0:00:02]} 52. Kxc3
{[%emt 0:00:02]} Re2 {[%emt 0:00:00]} 53. Rd2 {[%emt 0:00:01]} Re3+ {[%emt 0:
00:01]} 54. Kd4 {[%emt 0:00:01]} Re7 {[%emt 0:00:01]} 55. Rb2 {[%emt 0:00:01]}
Rd7+ {[%emt 0:00:01]} 56. Ke3 {[%emt 0:00:01]} Re7+ {[%emt 0:00:00]} 57. Kf2
Rc7 {[%emt 0:00:02]} 58. Rb5+ {[%emt 0:00:02]} Kg6 {[%emt 0:00:00]} 59. g4 {
[%emt 0:00:01]} Rc3 {[%emt 0:00:01]} 60. Kg3 {[%emt 0:00:01]} Ra3 {[%emt 0:00:
01]} 61. h4 {[%emt 0:00:00]} 1-0

[Event "FIDE Women World Blitz 2021"]
[Site "Warsaw"]
[Date "2021.12.29"]
[Round "3.25"]
[White "Berend, Elvira"]
[Black "Salimova, Nurgyul"]
[Result "0-1"]
[ECO "D03"]
[WhiteElo "2328"]
[BlackElo "2353"]
[Annotator "NA"]
[PlyCount "41"]
[EventDate "2021.12.29"]
[EventType "swiss"]
[EventCountry "POL"]
[Tiebreak "Cut1 Buchholz"]
[SourceTitle "playchess.com"]
[Source "ChessBase"]
[SourceQuality "1"]
[TimeControl "180+2"]

1. d4 {[%emt 0:00:01]} Nf6 {[%emt 0:00:01]} 2. Nf3 {[%emt 0:00:01]} d5 {
[%emt 0:00:03]} 3. Bg5 {[%emt 0:00:10]} c6 {[%emt 0:00:13]} 4. Bxf6 {[%emt 0:
00:03]} exf6 {[%emt 0:00:02]} 5. e3 {[%emt 0:00:05]} Bd6 {[%emt 0:00:07]} 6. g3
{[%emt 0:00:09]} Qb6 {[%emt 0:00:19]} 7. Qc1 {[%emt 0:00:04]} Bg4 {[%emt 0:00:
04]} 8. Bg2 {[%emt 0:00:01]} Qa6 {[%emt 0:00:20]} 9. Nbd2 {[%emt 0:00:04]} Nd7
{[%emt 0:00:04]} 10. a3 {[%emt 0:00:34]} O-O {[%emt 0:00:26]} 11. c4 {[%emt 0:
00:08]} dxc4 {[%emt 0:00:02]} 12. Nxc4 {[%emt 0:00:03]} Bc7 {[%emt 0:00:20]}
13. O-O {[%emt 0:00:02]} Qb5 {[%emt 0:00:05]} 14. h3 {[%emt 0:00:16]} Be6 {
[%emt 0:00:05]} 15. Nfd2 {[%emt 0:00:17]} Qh5 {[%emt 0:00:04]} 16. Nf3 {
[%emt 0:01:09]} Bxh3 {[%emt 0:00:13]} 17. Ncd2 {[%emt 0:00:15]} f5 {[%emt 0:00:
05]} 18. Qc2 {[%emt 0:00:09]} Nf6 {[%emt 0:00:07]} 19. Bxh3 {[%emt 0:00:05]}
Qxh3 {[%emt 0:00:02]} 20. Ng5 {[%emt 0:00:03]} Qh5 {[%emt 0:00:11]} 21. Ngf3 {
[%emt 0:00:03]} 0-1

[Event "FIDE Women World Blitz 2021"]
[Site "Warsaw"]
[Date "2021.12.29"]
[Round "3.26"]
[White "Maltsevskaya, Aleksandra"]
[Black "Nur-Mukhametova, Alisa"]
[Result "1-0"]
[ECO "B55"]
[WhiteElo "2411"]
[BlackElo "2225"]
[Annotator "NA"]
[PlyCount "105"]
[EventDate "2021.12.29"]
[EventType "swiss"]
[EventCountry "POL"]
[Tiebreak "Cut1 Buchholz"]
[SourceTitle "playchess.com"]
[Source "ChessBase"]
[SourceQuality "1"]
[TimeControl "180+2"]

1. e4 {[%emt 0:00:01]} c5 {[%emt 0:00:01]} 2. Nf3 {[%emt 0:00:01]} d6 {[%emt 0:
00:01]} 3. d4 {[%emt 0:00:01]} cxd4 {[%emt 0:00:02]} 4. Nxd4 {[%emt 0:00:00]}
Nf6 {[%emt 0:00:02]} 5. f3 {[%emt 0:00:02]} e5 {[%emt 0:00:01]} 6. Nb3 {
[%emt 0:00:01]} a5 {[%emt 0:00:02]} 7. Nc3 {[%emt 0:00:06]} a4 {[%emt 0:00:10]}
8. Nd2 {[%emt 0:00:01]} d5 {[%emt 0:00:37]} 9. exd5 {[%emt 0:00:21]} Nxd5 {
[%emt 0:00:26]} 10. Nde4 {[%emt 0:01:03]} Nxc3 {[%emt 0:00:21]} 11. Qxd8+ {
[%emt 0:00:02]} Kxd8 {[%emt 0:00:01]} 12. Nxc3 {[%emt 0:00:01]} a3 {[%emt 0:00:
32]} 13. Bc4 {[%emt 0:00:01]} f6 {[%emt 0:00:56]} 14. bxa3 {[%emt 0:00:14]}
Bxa3 {[%emt 0:00:06]} 15. Bxa3 {[%emt 0:00:01]} Rxa3 {[%emt 0:00:00]} 16.
O-O-O+ {[%emt 0:00:03]} Bd7 {[%emt 0:00:12]} 17. Rd3 {[%emt 0:00:20]} Nc6 {
[%emt 0:00:03]} 18. Kb2 {[%emt 0:00:14]} Ra5 {[%emt 0:00:01]} 19. Rhd1 {
[%emt 0:00:07]} Nd4 {[%emt 0:00:01]} 20. Ne2 {[%emt 0:00:01]} Kc7 {[%emt 0:00:
04]} 21. Nxd4 {[%emt 0:00:01]} exd4 {[%emt 0:00:00]} 22. Rxd4 {[%emt 0:00:02]}
Bc6 {[%emt 0:00:01]} 23. Re1 {[%emt 0:00:13]} Re5 {[%emt 0:00:01]} 24. Red1 {
[%emt 0:00:19]} Rhe8 {[%emt 0:00:03]} 25. R1d2 {[%emt 0:00:01]} R8e7 {[%emt 0:
00:04]} 26. Bd3 {[%emt 0:00:16]} h6 {[%emt 0:00:02]} 27. Rc4 {[%emt 0:00:01]}
Kb8 {[%emt 0:00:02]} 28. Rb4 {[%emt 0:00:05]} Kc7 {[%emt 0:00:02]} 29. a4 {
[%emt 0:00:06]} Rd7 {[%emt 0:00:01]} 30. Kc3 {[%emt 0:00:04]} Ra5 {[%emt 0:00:
02]} 31. Bb5 {[%emt 0:00:03]} Rxd2 {[%emt 0:00:01]} 32. Kxd2 {[%emt 0:00:01]}
Bxb5 33. axb5 {[%emt 0:00:01]} Kb6 {[%emt 0:00:04]} 34. Re4 {[%emt 0:00:11]}
Rxb5 {[%emt 0:00:03]} 35. Re7 {[%emt 0:00:01]} Rg5 {[%emt 0:00:02]} 36. g4 {
[%emt 0:00:01]} h5 {[%emt 0:00:03]} 37. h3 {[%emt 0:00:05]} hxg4 {[%emt 0:00:
02]} 38. fxg4 {[%emt 0:00:02]} Kc6 {[%emt 0:00:01]} 39. Ke3 {[%emt 0:00:01]} b6
{[%emt 0:00:03]} 40. Kf4 {[%emt 0:00:01]} Kd6 {[%emt 0:00:01]} 41. Rb7 {
[%emt 0:00:01]} Kc6 42. Rf7 {[%emt 0:00:01]} Kd6 {[%emt 0:00:05]} 43. h4 {
[%emt 0:00:01]} Rg6 {[%emt 0:00:03]} 44. Kf5 {[%emt 0:00:05]} Rh6 {[%emt 0:00:
01]} 45. h5 {[%emt 0:00:02]} Rh8 {[%emt 0:00:03]} 46. Rxg7 {[%emt 0:00:01]} Rc8
{[%emt 0:00:01]} 47. Rb7 {[%emt 0:00:01]} Rc5+ {[%emt 0:00:02]} 48. Kxf6 {
[%emt 0:00:02]} Kc6 {[%emt 0:00:01]} 49. Rb8 {[%emt 0:00:01]} Kc7 {[%emt 0:00:
02]} 50. Re8 {[%emt 0:00:01]} Rxc2 {[%emt 0:00:01]} 51. h6 {[%emt 0:00:01]}
Rc6+ {[%emt 0:00:01]} 52. Kg7 {[%emt 0:00:01]} Rc4 {[%emt 0:00:03]} 53. g5 {
[%emt 0:00:01]} 1-0

[Event "FIDE Women World Blitz 2021"]
[Site "Warsaw"]
[Date "2021.12.29"]
[Round "3.27"]
[White "Kazarian, Anna-Maja"]
[Black "Cyfka, Karina"]
[Result "0-1"]
[ECO "C89"]
[WhiteElo "2138"]
[BlackElo "2416"]
[Annotator "NA"]
[PlyCount "132"]
[EventDate "2021.12.29"]
[EventType "swiss"]
[EventCountry "POL"]
[Tiebreak "Cut1 Buchholz"]
[SourceTitle "playchess.com"]
[Source "ChessBase"]
[SourceQuality "1"]
[TimeControl "180+2"]

1. e4 {[%emt 0:00:01]} e5 {[%emt 0:00:01]} 2. Nf3 {[%emt 0:00:01]} Nc6 {
[%emt 0:00:01]} 3. Bb5 {[%emt 0:00:02]} a6 {[%emt 0:00:01]} 4. Ba4 {[%emt 0:00:
01]} Nf6 {[%emt 0:00:02]} 5. d3 {[%emt 0:00:01]} b5 {[%emt 0:00:03]} 6. Bb3 {
[%emt 0:00:01]} Be7 {[%emt 0:00:08]} 7. O-O {[%emt 0:00:03]} O-O {[%emt 0:00:
01]} 8. c3 {[%emt 0:00:01]} d5 {[%emt 0:00:08]} 9. exd5 {[%emt 0:00:06]} Nxd5 {
[%emt 0:00:01]} 10. Re1 {[%emt 0:00:01]} Bg4 {[%emt 0:00:09]} 11. h3 {[%emt 0:
00:21]} Bh5 {[%emt 0:00:00]} 12. a4 {[%emt 0:00:35]} b4 {[%emt 0:00:22]} 13. g4
{[%emt 0:00:28]} Bg6 {[%emt 0:00:01]} 14. Nxe5 {[%emt 0:00:02]} Nxe5 {[%emt 0:
00:04]} 15. Rxe5 {[%emt 0:00:01]} c6 {[%emt 0:00:16]} 16. Bxd5 {[%emt 0:00:30]}
cxd5 {[%emt 0:00:03]} 17. Qf3 {[%emt 0:00:02]} d4 {[%emt 0:00:33]} 18. Rd5 {
[%emt 0:00:30]} Qb6 {[%emt 0:00:27]} 19. Rxd4 {[%emt 0:00:19]} bxc3 {[%emt 0:
00:06]} 20. bxc3 {[%emt 0:00:02]} Bf6 {[%emt 0:00:18]} 21. Rd5 {[%emt 0:00:18]}
Rfe8 {[%emt 0:00:15]} 22. Na3 {[%emt 0:00:12]} Bxc3 {[%emt 0:00:08]} 23. Rb1 {
[%emt 0:00:01]} Qe6 {[%emt 0:00:07]} 24. Bf4 {[%emt 0:00:08]} f5 {[%emt 0:00:
18]} 25. Nc4 {[%emt 0:00:00]} fxg4 {[%emt 0:00:03]} 26. hxg4 {[%emt 0:00:01]}
Bf7 {[%emt 0:00:02]} 27. Rd6 {[%emt 0:00:01]} Qe2 {[%emt 0:00:08]} 28. Qxe2 {
[%emt 0:00:02]} Rxe2 {[%emt 0:00:01]} 29. Nb6 {[%emt 0:00:05]} Rae8 {[%emt 0:
00:03]} 30. Be3 {[%emt 0:00:01]} Bg6 {[%emt 0:00:04]} 31. Nc4 {[%emt 0:00:01]}
Bf6 {[%emt 0:00:05]} 32. Rxa6 {[%emt 0:00:02]} Bxd3 {[%emt 0:00:02]} 33. Rc1 {
[%emt 0:00:00]} Rc2 {[%emt 0:00:03]} 34. Rxc2 Bxc2 {[%emt 0:00:00]} 35. Nd6 {
[%emt 0:00:03]} Rd8 {[%emt 0:00:01]} 36. Rc6 {[%emt 0:00:03]} Bxa4 {[%emt 0:00:
02]} 37. Rc8 {[%emt 0:00:01]} Rxc8 {[%emt 0:00:02]} 38. Nxc8 {[%emt 0:00:01]}
Bd7 {[%emt 0:00:01]} 39. Nb6 {[%emt 0:00:01]} Bxg4 {[%emt 0:00:01]} 40. Nd5 {
[%emt 0:00:01]} Bd8 {[%emt 0:00:02]} 41. Kg2 {[%emt 0:00:03]} Bd7 {[%emt 0:00:
01]} 42. Kg3 {[%emt 0:00:01]} Kf7 {[%emt 0:00:01]} 43. Nf4 {[%emt 0:00:02]} Bc7
{[%emt 0:00:01]} 44. Kf3 {[%emt 0:00:02]} Bc6+ {[%emt 0:00:01]} 45. Ke2 {
[%emt 0:00:00]} g5 {[%emt 0:00:03]} 46. Nd3 {[%emt 0:00:10]} Bb5 {[%emt 0:00:
01]} 47. Bxg5 {[%emt 0:00:03]} Kg6 {[%emt 0:00:02]} 48. Be3 {[%emt 0:00:02]}
Kf5 {[%emt 0:00:02]} 49. Kd2 {[%emt 0:00:03]} Ba5+ {[%emt 0:00:01]} 50. Kc2 {
[%emt 0:00:01]} Ke4 {[%emt 0:00:01]} 51. Nc5+ {[%emt 0:00:00]} Kf3 {[%emt 0:00:
01]} 52. Nb3 {[%emt 0:00:01]} Ba4 {[%emt 0:00:01]} 53. Kb2 {[%emt 0:00:01]} Bd8
{[%emt 0:00:02]} 54. Nd4+ {[%emt 0:00:01]} Kg2 {[%emt 0:00:02]} 55. f4 {
[%emt 0:00:03]} Bf6 {[%emt 0:00:00]} 56. f5 {[%emt 0:00:03]} h5 {[%emt 0:00:01]
} 57. Ka3 {[%emt 0:00:05]} Bd7 {[%emt 0:00:02]} 58. Kb4 {[%emt 0:00:03]} h4 {
[%emt 0:00:01]} 59. Kc4 {[%emt 0:00:01]} h3 {[%emt 0:00:02]} 60. Bf4 {[%emt 0:
00:01]} Bh4 {[%emt 0:00:11]} 61. Ne2 {[%emt 0:00:01]} Kf3 {[%emt 0:00:01]} 62.
Kd3 {[%emt 0:00:02]} Bb5+ {[%emt 0:00:01]} 63. Kd2 {[%emt 0:00:02]} Bxe2 {
[%emt 0:00:01]} 64. Bh2 {[%emt 0:00:01]} Bc4 {[%emt 0:00:02]} 65. f6 {[%emt 0:
00:03]} Bxf6 {[%emt 0:00:01]} 66. Ke1 {[%emt 0:00:00]} Kg2 {[%emt 0:00:01]} 0-1